{"text_format":"1","workbook":"xlsx","n_sheets":112,"sheets":["Импорт","Результаты","Протокол","Титул","A","B","C","D","E","F","1","2","3","4","5","6","7","8","9","10","11","12","13","X","14","15","16","17","18","19","20","21","22","23","24","25","26","27","28","29","30","31","32","33","34","35","36","37","38","Y","39","40","41","42","43","44","45","46","47","48","49","50","51","52","53","54","55","56","57","58","59","60","61","62","63","64","65","66","67","68","69","70","71","72","73","74","75","76","77","78","79","80","81","82","83","84","85","86","87","88","89","90","91","92","93","94","95","96","Z","К","Р","Т"],"not_rendered":{"charts":2,"images":89,"macros":0,"external_links":0,"defined_names":2,"comments":1,"pivot_tables":0},"unopened":[],"bounds":{"document_bytes":16777216,"sheet_cells":100000,"rows_first":2000,"rows_last":500,"rows_between":2000,"halvings":0,"cell_chars":16384,"cell_head_chars":4096},"cells_cut":0,"cells_raw":0,"read":"whole","date_system":"1900"}

{"sheet":"Импорт","index":0,"n_rows":2,"n_cols":42,"rows_kept":2,"cut":false,"hidden":false,"merged":[]}
["Фамилия, имя ребенка","Дата рождения","Дата обследования","Результат","I Звукопроизношение","1,1 Свистящие","1,2 Шипящие","1,3 л,ль","1,4 p,pь","1,5 Заднеязычные","1,6 Носовые м,мь,н,нь","1,7 Остальные согласные раннего онтогенеза","1,8 Гласные","2,1 Фонематическое восприятие","2,2 Артикуляционная моторика","2,3 Звуко-слоговая структура слова","2,5 Просодика","III Словарь","3,1 Глагольный словарь","3,2 Словарь существительных","3,3 Словарь прилагательных","3,4 Словарь наречий","3,5 Местоименный словарь","3,6 Словарь числительных","3,7 Понятийный словарь","IV,A Навыки словообразования","4,А,1 Существительные названия детенышей","4,А,2 Сущ-ные с уменьшительно-ласкательными суффиксами","4,А,3 Относительные прилагательные","4,А,4 Наречия","4,А,5 Притяжательные прилагательные","IV,Б Навыки словоизменения","4,Б,1 Верификация предложений","4,Б,2 Использование падежных форм существительных","4,Б,3 Дополнение предложений предлогами","4,Б,4 Образование мн ч существительных","4,Б,5 Согласование прилагательных с сущ-ми разного рода","V Связная речь","5,1 Трансформация высказываний","5,2 Синтаксическое прогнозирование","5,3 Заученная речь","5,4 Составление рассказа по аналогии"]
[{"$f":"Титул!J17","v":0},{"$f":"Титул!J22","v":"00:00:00"},{"$f":"Титул!J27","v":"2014-07-25T11:31:48.640"},{"$f":"Протокол!E45","v":0.65873015873015872},{"$f":"Протокол!E5","v":0.45454545454545453},{"$f":"Протокол!E6","v":0},{"$f":"Протокол!E7","v":0},{"$f":"Протокол!E8","v":0},{"$f":"Протокол!E9","v":0},{"$f":"Протокол!E10","v":1},{"$f":"Протокол!E11","v":1},{"$f":"Протокол!E12","v":1},{"$f":"Протокол!E13","v":1},{"$f":"Протокол!E15","v":1},{"$f":"Протокол!E16","v":1},{"$f":"(Протокол!E17+Протокол!E18)/2","v":0.5},{"$f":"Протокол!E19","v":0},{"$f":"Протокол!E20","v":1},{"$f":"Протокол!E21","v":1},{"$f":"Протокол!E22","v":1},{"$f":"Протокол!E23","v":1},{"$f":"Протокол!E24","v":1},{"$f":"Протокол!E25","v":1},{"$f":"Протокол!E26","v":1},{"$f":"Протокол!E27","v":1},{"$f":"Протокол!E28","v":1},{"$f":"Протокол!E29","v":1},{"$f":"Протокол!E30","v":1},{"$f":"Протокол!E31","v":1},{"$f":"Протокол!E32","v":1},{"$f":"Протокол!E33","v":1},{"$f":"Протокол!E34","v":1},{"$f":"Протокол!E35","v":1},{"$f":"Протокол!E36","v":1},{"$f":"Протокол!E37","v":1},{"$f":"Протокол!E38","v":1},{"$f":"Протокол!E39","v":1},{"$f":"Протокол!E40","v":0},{"$f":"Протокол!E41","v":0},{"$f":"Протокол!E42","v":0},{"$f":"Протокол!E43","v":0},{"$f":"Протокол!E44","v":0}]

{"sheet":"Результаты","index":1,"n_rows":13,"n_cols":74,"rows_kept":13,"cut":false,"hidden":false,"merged":[]}
["СР: трансф-я высказ-й: вопрос в сообщение","СР: трансф-я высказ-й: утверждение в отрицание","СР: трансф-я высказ-й: отрицание  в утверждение","СР: трансф-я высказ-й: сообщение  в вопрос","СР: трансф-я высказ-й: сообщение  в побуждение","СР: трансф-я высказ-й: прямую речь  в косвенную и наоборот","СР: синтаксическое прогнозирование","СР: заученная речь","СР: чувствование синтаксической функции","просодика","звукопроизношение: С","звукопроизношение: Сь","звукопроизношение: З","звукопроизношение: Зь","звукопроизношение: Ц","звукопроизношение: Ш","звукопроизношение: Ж","звукопроизношение: Щ","звукопроизношение: Ч","звукопроизношение: Л","звукопроизношение: Ль","звукопроизношение: Р","звукопроизношение: Рь","звукопроизношение: Й","звукопроизношение: К","звукопроизношение: Кь","звукопроизношение: Г","звукопроизношение: Гь","звукопроизношение: Х","звукопроизношение: Хь","звукопроизношение: М","звукопроизношение: Мь","звукопроизношение: Н","звукопроизношение: Нь","звукопроизношение: П","звукопроизношение: Пь","звукопроизношение: Б","звукопроизношение: Бь","звукопроизношение: Т","звукопроизношение: Ть","звукопроизношение: Д","звукопроизношение: Дь","звукопроизношение: Ф","звукопроизношение: Фь","звукопроизношение: В","звукопроизношение: Вь","звукопроизношение: А","звукопроизношение: У","звукопроизношение: О","звукопроизношение: Ы","звукопроизношение: И","звукопроизношение: Э","фонематическое восприятие: воспроизведение пар слогов с оппозиционными звуками","фонематическое восприятие: воспроизведение пар слов с оппозиционными звуками","переключаемость на обратный порядок","слоговая структура слов","артикуляционная моторика","верификация предложений","использование падежных форм существительных","дополнение предложений предлогами","употребление мн.ч. существительных","согласование прилагательных с  существительными разного рода","подбор слов по аналогии: глагол","подбор слов по аналогии: существительное","подбор слов по аналогии: прилагательное","подбор слов по аналогии: наречие","подбор слов по аналогииместоимение","подбор слов по аналогии: числительное","понятийный словарь","словообразование: существительные (названия детенышей)","словообразование: существительные с уменьшительно-ласкательными суффиксами","словообразование: относительные прилагательные","словообразование: наречия","словообразование: притяжательные прилагательные"]
[{"$f":"COUNTIF(A3:A10,TRUE)","v":0},{"$f":"COUNTIF(B3:B10,TRUE)","v":0},0,0,0,0,0,0,0,0,0,0,0,0,0,0,0,0,0,0,0,0,0,3,3,3,3,3,3,3,3,3,3,3,3,3,3,3,3,3,3,3,3,3,3,3,1,1,1,1,1,1,5,5,5,0,7,5,6,3,5,4,3,3,3,{"$f":"COUNTIF(BN3:BN10,TRUE)","v":3},2,1,7,3,3,4,2,3]
[false,false,false,false,false,false,false,false,false,false,false,false,false,false,false,false,false,false,false,false,false,false,false,true,true,true,true,true,true,true,true,true,true,true,true,true,true,true,true,true,true,true,true,true,true,true,true,true,true,true,true,true,true,true,true,false,true,true,true,true,true,true,true,true,true,true,true,true,true,true,true,true,true,true]
[false,false,null,false,null,false,false,false,false,false,false,false,false,false,false,false,false,false,false,false,false,false,false,true,true,true,true,true,true,true,true,true,true,true,true,true,true,true,true,true,true,true,true,true,true,true,null,null,null,null,null,null,true,true,true,false,true,true,true,true,true,true,true,true,true,true,true,null,true,true,true,true,true,true]
[null,null,null,null,null,null,false,false,false,false,false,false,false,false,false,false,false,false,false,false,false,false,false,true,true,true,true,true,true,true,true,true,true,true,true,true,true,true,true,true,true,true,true,true,true,true,null,null,null,null,null,null,true,true,true,false,true,true,true,true,true,true,true,true,true,true,null,null,true,true,true,true,null,true]
[null,null,null,null,null,null,false,null,false,false,null,null,null,null,null,null,null,null,null,null,null,null,null,null,null,null,null,null,null,null,null,null,null,null,null,null,null,null,null,null,null,null,null,null,null,null,null,null,null,null,null,null,true,true,true,false,true,true,true,null,true,true,null,null,null,null,null,null,true,null,null,true]
[null,null,null,null,null,null,false,null,false,null,null,null,null,null,null,null,null,null,null,null,null,null,null,null,null,null,null,null,null,null,null,null,null,null,null,null,null,null,null,null,null,null,null,null,null,null,null,null,null,null,null,null,true,true,true,null,true,true,true,null,true,null,null,null,null,null,null,null,true]
[null,null,null,null,null,null,null,null,null,null,null,null,null,null,null,null,null,null,null,null,null,null,null,null,null,null,null,null,null,null,null,null,null,null,null,null,null,null,null,null,null,null,null,null,null,null,null,null,null,null,null,null,null,null,null,null,true,null,true,null,null,null,null,null,null,null,null,null,true]
[null,null,null,null,null,null,null,null,null,null,null,null,null,null,null,null,null,null,null,null,null,null,null,null,null,null,null,null,null,null,null,null,null,null,null,null,null,null,null,null,null,null,null,null,null,null,null,null,null,null,null,null,null,null,null,null,true,null,null,null,null,null,null,null,null,null,null,null,true]
[]
["A",null,null,"B",null,null,"C","D","E","D",1,2,3,4,5,6,7,8,9,10,11,12,13,14,15,16,17,18,19,20,21,22,23,24,25,26,27,28,29,30,31,32,33,34,35,36,37,37,37,38,38,38,"39-43","44-48","39-43","1-13","49-53",54,"55-56","57-58","59-63",64,"65-67","68-70","71-73","74-76","77-78",79,"80-81","82-84","85-87","88-91","92-93","94-96"]
[null,null,null,null,null,null,null,null,null,null,"C","Cь","З","Зь","Ц","Ш","Ж","Щ","Ч","Л","Ль","Р","Рь","Й","К","Кь","Г","Гь","Х","Хь","М","Мь","Н","Нь","П","Пь","Б","Бь","Т","Ть","Д","Дь","Ф","Фь","В","Вь","А","У","О","Ы","И","Э"]
[null,null,null,null,null,null,null,null,null,null,{"$f":"K2/3","v":0},{"$f":"L2/3","v":0},0,0,0,0,0,0,0,0,0,0,0,1,1,1,1,1,1,1,1,1,1,1,1,1,1,1,1,1,1,1,1,1,1,1,{"$f":"AU2","v":1},1,1,1,1,1]

{"sheet":"Протокол","index":2,"n_rows":121,"n_cols":23,"rows_kept":121,"cut":false,"hidden":false,"merged":[[0,1,0,4],[1,11,1,12],[45,11,45,12],[46,9,46,10],[46,11,46,12],[46,6,46,7],[45,9,45,10],[45,6,45,7],[52,5,53,12],[50,11,50,12]]}
[null,"ПРОТОКОЛ ОБСЛЕДОВАНИЯ РЕЧИ ПО ТЕСТОВОЙ МЕТОДИКЕ ЭКСПРЕСС-ДИАГНОСТИКИ",null,null,null,"Фамилия, имя ребенка:",null,null,null,"Полных лет:",null,"Дата обследования"]
[null,"Фамилия, имя ребенка:","Полных лет:",null,"Дата обсле-дования",{"$f":"Титул!J17","v":0},null,null,null,{"$f":"DATEDIF(Титул!J22,Титул!J27,\"Y\")","v":114},null,{"$f":"Титул!J27","v":"2014-07-25T11:31:48.640"}]
[null,{"$f":"Титул!J17","v":0},{"$f":"DATEDIF(Титул!J22,Титул!J27,\"Y\")","v":114},null,{"$f":"Титул!J27","v":"2014-07-25T11:31:48.640"}]
[null,"Речевые пробы","Максимально возможное количество баллов","Кол-во баллов на дату обсле-дования","Уровень успешности на дату обсле-дования"]
[null,"Блок I. Звукопроизношение",{"$f":"SUM(C6:C13)","v":22},{"$f":"SUM(D6:D13)","v":10},{"$f":"(D5/C5)","v":0.45454545454545453}]
[null,"1. Свистящие",3,{"$f":"SUM(Результаты!K2:O2)/5","v":0},0]
[null,"2. Шипящие",3,{"$f":"SUM(Результаты!P2:S2)/4","v":0},0]
[null,"3. [л-л']",3,{"$f":"SUM(Результаты!T2:U2)/2","v":0},0]
[null,"4. [p-p']",3,{"$f":"SUM(Результаты!V2:W2)/2","v":0},0]
[null,"5. Заднеязычные",3,{"$f":"SUM(Результаты!X2:AD2)/7","v":3},1]
[null,"6. Носовые [м,м',н,н']",3,{"$f":"SUM(Результаты!AE2:AH2)/4","v":3},1]
[null,"7. Остальные согласные раннего онтогенеза",3,{"$f":"SUM(Результаты!AI2:AT2)/12","v":3},1]
[null,"8. Гласные",1,{"$f":"SUM(Результаты!AU2:AZ2)/6","v":1},1]
[null,"Блок II. Сенсомоторная организация речи",{"$f":"SUM(C15:C19)","v":21},{"$f":"SUM(D15:D19)","v":13},0.61904761904761907]
[null,"1. Фонематическое восприятие",5,{"$f":"Результаты!BA2/2+Результаты!BB2/2","v":5},1]
[null,"2. Артикуляционная моторика",7,{"$f":"Результаты!BE2","v":7},1]
[null,"3. Звуко-слоговая структура слова",4,{"$f":"SUM(Результаты!BD2)","v":0},0]
[null,"4. Переключаемость",1,{"$f":"Результаты!BC2/5","v":1},1]
[null,"5. Просодика",4,{"$f":"Результаты!J2","v":0},0]
[null,"Блок III. Состояние активного словаря",{"$f":"SUM(C21:C27)","v":22},{"$f":"SUM(D21:D27)","v":22},1]
[null,"1. Глагольный словарь",3,{"$f":"Результаты!BK2","v":3},1]
[null,"2. Словарь существительных",3,{"$f":"Результаты!BL2","v":3},1]
[null,"3. Словарь прилагательных",3,{"$f":"Результаты!BM2","v":3},1]
[null,"4. Словарь наречий",3,{"$f":"Результаты!BN2","v":3},1]
[null,"5. Местоименный словарь",2,{"$f":"Результаты!BO2","v":2},1]
[null,"6. Словарь числительных",1,{"$f":"Результаты!BP2","v":1},1]
[null,"7. Понятийный словарь",7,{"$f":"Результаты!BQ2","v":7},1]
[null,"Блок IV-A. Грамматический строй: словообразование",{"$f":"SUM(C29:C33)","v":15},{"$f":"SUM(D29:D33)","v":15},1]
[null,"1. Существительные (названия детенышей)",3,{"$f":"Результаты!BR2","v":3},1]
[null,"2. Сущ-ные с уменьшительно-ласкательными суффиксами",3,{"$f":"Результаты!BS2","v":3},1]
[null,"3. Относительные прилагательные",4,{"$f":"Результаты!BT2","v":4},1]
[null,"4. Наречия",2,{"$f":"Результаты!BU2","v":2},1]
[null,"5. Притяжательные прилагательные",3,{"$f":"Результаты!BV2","v":3},1]
[null,"Блок IV-Б. Грамматический строй: словоизменение",{"$f":"SUM(C35:C39)","v":23},{"$f":"SUM(D35:D39)","v":23},1]
[null,"1. Верификация предложений",5,{"$f":"Результаты!BF2","v":5},1]
[null,"2. Использование падежных форм существительных",6,{"$f":"Результаты!BG2","v":6},1]
[null,"3. Дополнение предложений предлогами",3,{"$f":"Результаты!BH2","v":3},1]
[null,"4. Образование мн.ч. существительных",5,{"$f":"Результаты!BI2","v":5},1]
[null,"5. Согласование прилагательных с сущ-ми разного рода",4,{"$f":"Результаты!BJ2","v":4},1]
[null,"Блок V. Связная речь",{"$f":"SUM(C41:C44)","v":23},{"$f":"SUM(D41:D44)","v":0},0]
[null,"1. Беседа с педагогом",10,{"$f":"SUM(Результаты!A2:F2)","v":0},0,null,null,null,null,null,null,null,null,null,"произношение","фонематич. восприятие","артикуляц. моторика","звуко-слоговая организация речи","просодика","словарь","навыки словообразования","навыки словоизменения","связная речь"]
[null,"2. Рассказывание на основе личного опыта (синтакс. прогноз)",5,{"$f":"Результаты!G2","v":0},0,null,null,null,null,null,null,null,null,"нижняя граница возрастной нормы",0.8,0.8,0.8,0.8,0.8,0.8,0.8,0.8,0.8]
[null,"3. Заученная речь",3,{"$f":"Результаты!H2","v":0},0]
[null,"4. Составление рассказа по аналогии",5,{"$f":"Результаты!I2","v":0},0,null,null,null,null,null,null,null,null,"речевой профиль на дату обследования",{"$f":"E5","v":0.45454545454545453},{"$f":"E15","v":1},{"$f":"E16","v":1},{"$f":"(E17+E18)/2","v":0.5},{"$f":"E19","v":0},{"$f":"E20","v":1},{"$f":"E28","v":1},{"$f":"E34","v":1},{"$f":"E40","v":0}]
[null,"За весь тест",{"$f":"C5+C14+C20+C28+C34+C40","v":126},{"$f":"D5+D14+D20+D28+D34+D40","v":83},0.65873015873015872]
[]
[null,"Логопед:"]
[]
[]
[null,null,null,null,null,"Фамилия, имя ребенка:",null,null,null,"Полных лет:",null,"Дата обследования"]
[null,null,null,null,null,{"$f":"Титул!J17","v":0},null,null,null,{"$f":"DATEDIF(Титул!J22,Титул!J27,\"Y\")","v":114},null,{"$f":"Титул!J27","v":"2014-07-25T11:31:48.640"}]
[null,"Фамилия, имя ребенка:","Полных лет:",null,"Дата обследования"]
[null,{"$f":"Титул!J17","v":0},{"$f":"DATEDIF(Титул!J22,Титул!J27,\"Y\")","v":114},null,{"$f":"Титул!J27","v":"2014-07-25T11:31:48.640"},"Особенности состояния артикуляционного аппарата\nи артикуляционной моторики"]
[null,"Таблица особенностей звукопроизношения"]
[]
["звук","особенности произношения","вывод"]
[{"$f":"IF(Результаты!K2<3,Результаты!K12)","v":"C"},{"$f":"'1'!R22","v":0},{"$f":"IF(Результаты!K2=2,\"не автоматиз-й\",IF(Результаты!K2=1,\"изолирован-й\",))","v":0}]
[{"$f":"IF(Результаты!L2<3,Результаты!L12)","v":"Cь"},{"$f":"'2'!R22","v":0},{"$f":"IF(Результаты!L2=2,\"не автоматиз-й\",IF(Результаты!L2=1,\"изолирован-й\",))","v":0}]
[{"$f":"IF(Результаты!M2<3,Результаты!M12)","v":"З"},{"$f":"'3'!R22","v":0},{"$f":"IF(Результаты!M2=2,\"не автоматиз-й\",IF(Результаты!M2=1,\"изолирован-й\",))","v":0},null,null,{"$f":"'49'!J17","v":0}]
[{"$f":"IF(Результаты!N2<3,Результаты!N12)","v":"Зь"},{"$f":"'4'!R26","v":0},{"$f":"IF(Результаты!N2=2,\"не автоматиз-й\",IF(Результаты!N2=1,\"изолирован-й\",))","v":0}]
[{"$f":"IF(Результаты!O2<3,Результаты!O12)","v":"Ц"},{"$f":"'5'!R21","v":0},{"$f":"IF(Результаты!O2=2,\"не автоматиз-й\",IF(Результаты!O2=1,\"изолирован-й\",))","v":0}]
[{"$f":"IF(Результаты!P2<3,Результаты!P12)","v":"Ш"},{"$f":"'6'!R21","v":0},{"$f":"IF(Результаты!P2=2,\"не автоматиз-й\",IF(Результаты!P2=1,\"изолирован-й\",))","v":0}]
[{"$f":"IF(Результаты!Q2<3,Результаты!Q12)","v":"Ж"},{"$f":"'7'!R26","v":0},{"$f":"IF(Результаты!Q2=2,\"не автоматиз-й\",IF(Результаты!Q2=1,\"изолирован-й\",))","v":0},null,null,{"$f":"'50'!J18","v":0}]
[{"$f":"IF(Результаты!R2<3,Результаты!R12)","v":"Щ"},{"$f":"'8'!R22","v":0},{"$f":"IF(Результаты!R2=2,\"не автоматиз-й\",IF(Результаты!R2=1,\"изолирован-й\",))","v":0}]
[{"$f":"IF(Результаты!S2<3,Результаты!S12)","v":"Ч"},{"$f":"'9'!R26","v":0},{"$f":"IF(Результаты!S2=2,\"не автоматиз-й\",IF(Результаты!S2=1,\"изолирован-й\",))","v":0}]
[{"$f":"IF(Результаты!T2<3,Результаты!T12)","v":"Л"},{"$f":"'10'!R22","v":0},{"$f":"IF(Результаты!T2=2,\"не автоматиз-й\",IF(Результаты!T2=1,\"изолирован-й\",))","v":0}]
[{"$f":"IF(Результаты!U2<3,Результаты!U12)","v":"Ль"},{"$f":"'11'!R22","v":0},{"$f":"IF(Результаты!U2=2,\"не автоматиз-й\",IF(Результаты!U2=1,\"изолирован-й\",))","v":0},null,null,{"$f":"'51'!J23","v":0}]
[{"$f":"IF(Результаты!V2<3,Результаты!V12)","v":"Р"},{"$f":"'12'!R22","v":0},{"$f":"IF(Результаты!V2=2,\"не автоматиз-й\",IF(Результаты!V2=1,\"изолирован-й\",))","v":0}]
[{"$f":"IF(Результаты!W2<3,Результаты!W12)","v":"Рь"},{"$f":"'13'!R26","v":0},{"$f":"IF(Результаты!W2=2,\"не автоматиз-й\",IF(Результаты!W2=1,\"изолирован-й\",))","v":0}]
[{"$f":"IF(Результаты!X2<3,Результаты!X12)","v":false},{"$f":"'14'!R22","v":0}]
[{"$f":"IF(Результаты!Y2<3,Результаты!Y12)","v":false},{"$f":"'15'!R22","v":0},null,null,null,{"$f":"'52'!J20","v":0}]
[{"$f":"IF(Результаты!Z2<3,Результаты!Z12)","v":false},{"$f":"'16'!R22","v":0}]
[{"$f":"IF(Результаты!AA2<3,Результаты!AA12)","v":false},{"$f":"'17'!R22","v":0}]
[{"$f":"IF(Результаты!AB2<3,Результаты!AB12)","v":false},{"$f":"'18'!R22","v":0}]
[{"$f":"IF(Результаты!AC2<3,Результаты!AC12)","v":false},{"$f":"'19'!R22","v":0},null,null,null,{"$f":"'53'!J22","v":0}]
[{"$f":"IF(Результаты!AD2<3,Результаты!AD12)","v":false},{"$f":"'20'!R22","v":0}]
[{"$f":"IF(Результаты!AE2<3,Результаты!AE12)","v":false},{"$f":"'21'!R22","v":0}]
[{"$f":"IF(Результаты!AF2<3,Результаты!AF12)","v":false},{"$f":"'22'!R22","v":0}]
[{"$f":"IF(Результаты!AG2<3,Результаты!AG12)","v":false},{"$f":"'23'!R22","v":0}]
[{"$f":"IF(Результаты!AH2<3,Результаты!AH12)","v":false},{"$f":"'24'!R22","v":0}]
[{"$f":"IF(Результаты!AI2<3,Результаты!AI12)","v":false},{"$f":"'25'!R22","v":0}]
[{"$f":"IF(Результаты!AJ2<3,Результаты!AJ12)","v":false},{"$f":"'26'!R22","v":0}]
[{"$f":"IF(Результаты!AK2<3,Результаты!AK12)","v":false},{"$f":"'27'!R22","v":0}]
[{"$f":"IF(Результаты!AL2<3,Результаты!AL12)","v":false},{"$f":"'28'!R22","v":0}]
[{"$f":"IF(Результаты!AM2<3,Результаты!AM12)","v":false},{"$f":"'29'!R22","v":0}]
[{"$f":"IF(Результаты!AN2<3,Результаты!AN12)","v":false},{"$f":"'30'!R22","v":0}]
[{"$f":"IF(Результаты!AO2<3,Результаты!AO12)","v":false},{"$f":"'31'!R22","v":0}]
[{"$f":"IF(Результаты!AP2<3,Результаты!AP12)","v":false},{"$f":"'32'!R22","v":0}]
[{"$f":"IF(Результаты!AQ2<3,Результаты!AQ12)","v":false},{"$f":"'33'!R22","v":0}]
[{"$f":"IF(Результаты!AR2<3,Результаты!AR12)","v":false},{"$f":"'34'!R22","v":0}]
[{"$f":"IF(Результаты!AS2<3,Результаты!AS12)","v":false},{"$f":"'35'!R22","v":0}]
[{"$f":"IF(Результаты!AT2<3,Результаты!AT12)","v":false},{"$f":"'36'!R22","v":0}]
[{"$f":"IF(Результаты!AU2<1,Результаты!AU12)","v":false},{"$f":"'37'!R20","v":0}]
[{"$f":"IF(Результаты!AV2<1,Результаты!AV12)","v":false},{"$f":"'37'!R22","v":0}]
[{"$f":"IF(Результаты!AW2<1,Результаты!AW12)","v":false},{"$f":"'37'!R24","v":0}]
[{"$f":"IF(Результаты!AX2<1,Результаты!AX12)","v":false},{"$f":"'38'!R20","v":0}]
[{"$f":"IF(Результаты!AY2<1,Результаты!AY12)","v":false},{"$f":"'38'!R22","v":0}]
[{"$f":"IF(Результаты!AZ2<1,Результаты!AZ12)","v":false},{"$f":"'38'!R24","v":0}]
[]
[]
[]
[]
[null,"Фамилия, имя ребенка:","Полных лет:",null,"Дата обследования"]
[null,{"$f":"Титул!J17","v":0},{"$f":"DATEDIF(Титул!J22,Титул!J27,\"Y\")","v":114},null,{"$f":"Титул!J27","v":"2014-07-25T11:31:48.640"}]
[]
[null,"Особенности звуко-слоговой структуры речи"]
[]
[null,"характеристика звукослоговой структуры","примеры"]
[null,null,{"$f":"'1'!R25","v":0}]
[null,null,{"$f":"'2'!R25","v":0}]
[null,null,{"$f":"'3'!R25","v":0}]
[null,null,{"$f":"'4'!R29","v":0}]
[null,null,{"$f":"'5'!R24","v":0}]
[null,null,{"$f":"'6'!R24","v":0}]
[null,null,{"$f":"'7'!R29","v":0}]
[null,null,{"$f":"'8'!R25","v":0}]
[null,null,{"$f":"'9'!R29","v":0}]
[null,null,{"$f":"'10'!R25","v":0}]
[null,null,{"$f":"'11'!R25","v":0}]
[null,null,{"$f":"'12'!R25","v":0}]
[null,null,{"$f":"'13'!R29","v":0}]

{"sheet":"Титул","index":3,"n_rows":27,"n_cols":10,"rows_kept":27,"cut":false,"hidden":false,"merged":[[16,9,17,13],[21,9,22,10],[26,9,27,10]]}
[]
[]
[]
[]
[]
[]
[]
[]
[]
[]
[]
[]
[]
[]
[]
[]
[]
[]
[]
[]
[]
[]
[]
[]
[]
[]
[null,null,null,null,null,null,null,null,null,{"$f":"NOW()","v":"2014-07-25T11:31:48.640"}]

{"sheet":"A","index":4,"n_rows":2,"n_cols":2,"rows_kept":2,"cut":false,"hidden":false,"merged":[]}
[]
[null,"Вступительная беседа"]

{"sheet":"B","index":5,"n_rows":2,"n_cols":2,"rows_kept":2,"cut":false,"hidden":false,"merged":[]}
[]
[null,"Вступительная беседа"]

{"sheet":"C","index":6,"n_rows":2,"n_cols":2,"rows_kept":2,"cut":false,"hidden":false,"merged":[]}
[]
[null,"Синтаксическое прогнозирование"]

{"sheet":"D","index":7,"n_rows":7,"n_cols":16,"rows_kept":7,"cut":false,"hidden":false,"merged":[]}
[]
[null,"Заученная речь"]
[null,null,null,null,null,null,null,null,null,null,null,null,null,null,null,"\"Колобок\""]
[]
[null,null,null,null,null,null,null,null,null,null,null,null,null,null,null,"\"Репка\""]
[]
[null,null,null,null,null,null,null,null,null,null,null,null,null,null,null,"\"Теремок\""]

{"sheet":"E","index":8,"n_rows":2,"n_cols":2,"rows_kept":2,"cut":false,"hidden":false,"merged":[]}
[]
[null,"Связная речь"]

{"sheet":"F","index":9,"n_rows":2,"n_cols":2,"rows_kept":2,"cut":false,"hidden":false,"merged":[]}
[]
[null,"Связная речь"]

{"sheet":"1","index":10,"n_rows":24,"n_cols":18,"rows_kept":24,"cut":false,"hidden":false,"merged":[[21,17,22,19],[24,17,25,19],[19,17,20,19],[23,17,23,19]]}
[]
[null,"[С]"]
[]
[]
[]
[]
[]
[]
[]
[]
[]
[]
[]
[]
[]
[]
[]
[]
[]
[null,null,null,null,null,null,null,null,null,null,null,null,null,null,null,null,null,"Особенности\nпроизношения:"]
[]
[]
[null,null,null,null,null,null,null,null,null,null,"Киска ест \"Вискас\"."]
[null,null,null,null,null,null,null,null,null,null,null,null,null,null,null,null,null,"слоговой структуры:"]

{"sheet":"2","index":11,"n_rows":24,"n_cols":18,"rows_kept":24,"cut":false,"hidden":false,"merged":[[21,17,22,19],[24,17,25,19],[19,17,20,19],[23,17,23,19]]}
[]
[null,"[С']"]
[]
[]
[]
[]
[]
[]
[]
[]
[]
[]
[]
[]
[]
[]
[]
[]
[]
[null,null,null,null,null,null,null,null,null,null,null,null,null,null,null,null,null,"Особенности\nпроизношения:"]
[]
[]
[]
[null,null,null,null,null,null,null,null,null,null,null,"Сёма и Сеня тянут сети.",null,null,null,null,null,"слоговой структуры:"]

{"sheet":"3","index":12,"n_rows":24,"n_cols":18,"rows_kept":24,"cut":false,"hidden":false,"merged":[[21,17,22,19],[24,17,25,19],[19,17,20,19],[23,17,23,19]]}
[]
[null,"[З]"]
[]
[]
[]
[]
[]
[]
[]
[]
[]
[]
[]
[]
[]
[]
[]
[]
[]
[null,null,null,null,null,null,null,null,null,null,null,null,null,null,null,null,null,"Особенности\nпроизношения:"]
[]
[]
[]
[null,null,null,null,null,null,null,null,null,null,"За забором коза и козлята.",null,null,null,null,null,null,"слоговой структуры:"]

{"sheet":"4","index":13,"n_rows":28,"n_cols":18,"rows_kept":28,"cut":false,"hidden":false,"merged":[[25,17,26,19],[28,17,29,19],[23,17,24,19],[27,17,27,19]]}
[]
[null,"[З']"]
[]
[]
[]
[]
[]
[]
[]
[]
[]
[]
[]
[]
[]
[]
[]
[]
[]
[]
[]
[]
[]
[null,null,null,null,null,null,null,null,null,null,null,"У обезьяны зелёный бантик.",null,null,null,null,null,"Особенности\nпроизношения:"]
[]
[]
[]
[null,null,null,null,null,null,null,null,null,null,null,null,null,null,null,null,null,"слоговой структуры:"]

{"sheet":"5","index":14,"n_rows":23,"n_cols":18,"rows_kept":23,"cut":false,"hidden":false,"merged":[[20,17,21,19],[23,17,24,19],[18,17,19,19],[22,17,22,19]]}
[]
[null,"[Ц]"]
[]
[]
[]
[]
[]
[]
[]
[]
[]
[]
[]
[]
[]
[]
[]
[]
[null,null,null,null,null,null,null,null,null,null,null,null,null,null,null,null,null,"Особенности\nпроизношения:"]
[]
[]
[null,null,null,null,null,null,null,null,null,null,"У курицы цыплята."]
[null,null,null,null,null,null,null,null,null,null,null,null,null,null,null,null,null,"слоговой структуры:"]

{"sheet":"6","index":15,"n_rows":23,"n_cols":18,"rows_kept":23,"cut":false,"hidden":false,"merged":[[20,17,21,19],[23,17,24,19],[18,17,19,19],[22,17,22,19]]}
[]
[null,"[Ш]"]
[]
[]
[]
[]
[]
[]
[]
[]
[]
[]
[]
[]
[]
[]
[]
[]
[null,null,null,null,null,null,null,null,null,null,null,null,null,null,null,null,null,"Особенности\nпроизношения:"]
[]
[]
[]
[null,null,null,null,null,null,null,null,null,null,"Лягушка в мышином горошке.",null,null,null,null,null,null,"слоговой структуры:"]

{"sheet":"7","index":16,"n_rows":28,"n_cols":18,"rows_kept":28,"cut":false,"hidden":false,"merged":[[25,17,26,19],[28,17,29,19],[23,17,24,19],[27,17,27,19]]}
[]
[null,"[Ж]"]
[]
[]
[]
[]
[]
[]
[]
[]
[]
[]
[]
[]
[]
[]
[]
[]
[]
[]
[]
[]
[]
[null,null,null,null,null,null,null,null,null,null,null,null,null,null,null,null,null,"Особенности\nпроизношения:"]
[null,null,null,null,null,null,null,null,null,null,"У Жанны и Жени жёлуди."]
[]
[]
[null,null,null,null,null,null,null,null,null,null,null,null,null,null,null,null,null,"слоговой структуры:"]

{"sheet":"8","index":17,"n_rows":24,"n_cols":18,"rows_kept":24,"cut":false,"hidden":false,"merged":[[21,17,22,19],[24,17,25,19],[19,17,20,19],[23,17,23,19]]}
[]
[null,"[Щ']"]
[]
[]
[]
[]
[]
[]
[]
[]
[]
[]
[]
[]
[]
[]
[]
[]
[]
[null,null,null,null,null,null,null,null,null,null,null,null,null,null,null,null,null,"Особенности\nпроизношения:"]
[]
[]
[]
[null,null,null,null,null,null,null,null,null,null,null,"В ящике три щенка.",null,null,null,null,null,"слоговой структуры:"]

{"sheet":"9","index":18,"n_rows":28,"n_cols":18,"rows_kept":28,"cut":false,"hidden":false,"merged":[[25,17,26,19],[28,17,29,19],[23,17,24,19],[27,17,27,19]]}
[]
[null,"[Ч']"]
[]
[]
[]
[]
[]
[]
[]
[]
[]
[]
[]
[]
[]
[]
[]
[]
[]
[]
[]
[]
[]
[null,null,null,null,null,null,null,null,null,null,"У Ванечки булочка с черёмухой.",null,null,null,null,null,null,"Особенности\nпроизношения:"]
[]
[]
[]
[null,null,null,null,null,null,null,null,null,null,null,null,null,null,null,null,null,"слоговой структуры:"]

{"sheet":"10","index":19,"n_rows":24,"n_cols":18,"rows_kept":24,"cut":false,"hidden":false,"merged":[[21,17,22,19],[24,17,25,19],[19,17,20,19],[23,17,23,19]]}
[]
[null,"[Л]"]
[]
[]
[]
[]
[]
[]
[]
[]
[]
[]
[]
[]
[]
[]
[]
[]
[]
[null,null,null,null,null,null,null,null,null,null,null,null,null,null,null,null,null,"Особенности\nпроизношения:"]
[]
[null,null,null,null,null,null,null,null,null,null,"Володя и Мила в лодке."]
[]
[null,null,null,null,null,null,null,null,null,null,null,null,null,null,null,null,null,"слоговой структуры:"]

{"sheet":"11","index":20,"n_rows":24,"n_cols":18,"rows_kept":24,"cut":false,"hidden":false,"merged":[[21,17,22,19],[24,17,25,19],[19,17,20,19],[23,17,23,19]]}
[]
[null,"[Л']"]
[]
[]
[]
[]
[]
[]
[]
[]
[]
[]
[]
[]
[]
[]
[]
[]
[]
[null,null,null,null,null,null,null,null,null,null,null,null,null,null,null,null,null,"Особенности\nпроизношения:"]
[]
[null,null,null,null,null,null,null,null,null,null,"Лебеди летят над полями."]
[]
[null,null,null,null,null,null,null,null,null,null,null,null,null,null,null,null,null,"слоговой структуры:"]

{"sheet":"12","index":21,"n_rows":24,"n_cols":18,"rows_kept":24,"cut":false,"hidden":false,"merged":[[21,17,22,19],[24,17,25,19],[19,17,20,19],[23,17,23,19]]}
[]
[null,"[Р]"]
[]
[]
[]
[]
[]
[]
[]
[]
[]
[]
[]
[]
[]
[]
[]
[]
[]
[null,null,null,null,null,null,null,null,null,null,null,null,null,null,null,null,null,"Особенности\nпроизношения:"]
[]
[]
[null,null,null,null,null,null,null,null,null,null,null,null,"В траве корзина."]
[null,null,null,null,null,null,null,null,null,null,null,null,null,null,null,null,null,"слоговой структуры:"]

{"sheet":"13","index":22,"n_rows":28,"n_cols":18,"rows_kept":28,"cut":false,"hidden":false,"merged":[[25,17,26,19],[28,17,29,19],[23,17,24,19],[27,17,27,19]]}
[]
[null,"[Р']"]
[]
[]
[]
[]
[]
[]
[]
[]
[]
[]
[]
[]
[]
[]
[]
[]
[]
[]
[]
[]
[]
[null,null,null,null,null,null,null,null,null,null,"У ребят репа и редиска.",null,null,null,null,null,null,"Особенности\nпроизношения:"]
[]
[]
[]
[null,null,null,null,null,null,null,null,null,null,null,null,null,null,null,null,null,"слоговой структуры:"]

{"sheet":"X","index":23,"n_rows":2,"n_cols":2,"rows_kept":2,"cut":false,"hidden":false,"merged":[]}
[]
[null,"Внимание!"]

{"sheet":"14","index":24,"n_rows":25,"n_cols":18,"rows_kept":25,"cut":false,"hidden":false,"merged":[[21,17,25,19]]}
[]
[null,"[Й']"]
[]
[]
[]
[]
[]
[]
[]
[]
[]
[]
[]
[]
[]
[]
[]
[]
[]
[null,null,null,null,null,null,null,null,null,null,null,null,null,null,null,null,null,"Примечание:"]
[]
[]
[]
[]
[null,null,null,null,null,null,null,null,null,null,"Яша играет на балалайке."]

{"sheet":"15","index":25,"n_rows":22,"n_cols":18,"rows_kept":22,"cut":false,"hidden":false,"merged":[[21,17,25,19]]}
[]
[null,"[К]"]
[]
[]
[]
[]
[]
[]
[]
[]
[]
[]
[]
[]
[]
[]
[]
[]
[]
[null,null,null,null,null,null,null,null,null,null,null,null,null,null,null,null,null,"Примечание:"]
[]
[null,null,null,null,null,null,null,null,null,null,null,"У кошки котенок."]

{"sheet":"16","index":26,"n_rows":23,"n_cols":18,"rows_kept":23,"cut":false,"hidden":false,"merged":[[21,17,25,19]]}
[]
[null,"[К']"]
[]
[]
[]
[]
[]
[]
[]
[]
[]
[]
[]
[]
[]
[]
[]
[]
[]
[null,null,null,null,null,null,null,null,null,null,null,null,null,null,null,null,null,"Примечание:"]
[]
[]
[null,null,null,null,null,null,null,null,null,null,null,"Никита надевает носки."]

{"sheet":"17","index":27,"n_rows":23,"n_cols":18,"rows_kept":23,"cut":false,"hidden":false,"merged":[[21,17,25,19]]}
[]
[null,"[Г]"]
[]
[]
[]
[]
[]
[]
[]
[]
[]
[]
[]
[]
[]
[]
[]
[]
[]
[null,null,null,null,null,null,null,null,null,null,null,null,null,null,null,null,null,"Примечание:"]
[]
[]
[null,null,null,null,null,null,null,null,null,"Галя и Гоша гусей стерегут."]

{"sheet":"18","index":28,"n_rows":23,"n_cols":18,"rows_kept":23,"cut":false,"hidden":false,"merged":[[21,17,25,19]]}
[]
[null,"[Г']"]
[]
[]
[]
[]
[]
[]
[]
[]
[]
[]
[]
[]
[]
[]
[]
[]
[]
[null,null,null,null,null,null,null,null,null,null,null,null,null,null,null,null,null,"Примечание:"]
[]
[]
[null,null,null,null,null,null,null,null,null,null,null,"Гена обувает сапоги."]

{"sheet":"19","index":29,"n_rows":23,"n_cols":18,"rows_kept":23,"cut":false,"hidden":false,"merged":[[21,17,25,19]]}
[]
[null,"[Х]"]
[]
[]
[]
[]
[]
[]
[]
[]
[]
[]
[]
[]
[]
[]
[]
[]
[]
[null,null,null,null,null,null,null,null,null,null,null,null,null,null,null,null,null,"Примечание:"]
[]
[]
[null,null,null,null,null,null,null,null,null,null,"Под дубом мох."]

{"sheet":"20","index":30,"n_rows":24,"n_cols":18,"rows_kept":24,"cut":false,"hidden":false,"merged":[[21,17,25,19]]}
[]
[null,"[Х']"]
[]
[]
[]
[]
[]
[]
[]
[]
[]
[]
[]
[]
[]
[]
[]
[]
[]
[null,null,null,null,null,null,null,null,null,null,null,null,null,null,null,null,null,"Примечание:"]
[]
[]
[]
[null,null,null,null,null,null,null,null,null,null,null,"Петухи боятся хитрой лисы."]

{"sheet":"21","index":31,"n_rows":24,"n_cols":18,"rows_kept":24,"cut":false,"hidden":false,"merged":[[21,17,25,19]]}
[]
[null,"[М]"]
[]
[]
[]
[]
[]
[]
[]
[]
[]
[]
[]
[]
[]
[]
[]
[]
[]
[null,null,null,null,null,null,null,null,null,null,null,null,null,null,null,null,null,"Примечание:"]
[]
[]
[]
[null,null,null,null,null,null,null,null,null,null,null,null,"У Мамы и Маши малина."]

{"sheet":"22","index":32,"n_rows":22,"n_cols":18,"rows_kept":22,"cut":false,"hidden":false,"merged":[[21,17,25,19]]}
[]
[null,"[М']"]
[]
[]
[]
[]
[]
[]
[]
[]
[]
[]
[]
[]
[]
[]
[]
[]
[]
[null,null,null,null,null,null,null,null,null,null,null,null,null,null,null,null,null,"Примечание:"]
[]
[null,null,null,null,null,null,null,null,null,null,"У мишки мёд."]

{"sheet":"23","index":33,"n_rows":24,"n_cols":18,"rows_kept":24,"cut":false,"hidden":false,"merged":[[21,17,25,19]]}
[]
[null,"[Н]"]
[]
[]
[]
[]
[]
[]
[]
[]
[]
[]
[]
[]
[]
[]
[]
[]
[]
[null,null,null,null,null,null,null,null,null,null,null,null,null,null,null,null,null,"Примечание:"]
[]
[]
[]
[null,null,null,null,null,null,null,null,null,"Носок на стуле."]

{"sheet":"24","index":34,"n_rows":25,"n_cols":18,"rows_kept":25,"cut":false,"hidden":false,"merged":[[21,17,25,19]]}
[]
[null,"[Н']"]
[]
[]
[]
[]
[]
[]
[]
[]
[]
[]
[]
[]
[]
[]
[]
[]
[]
[null,null,null,null,null,null,null,null,null,null,null,null,null,null,null,null,null,"Примечание:"]
[]
[]
[]
[]
[null,null,null,null,null,null,null,null,null,"Ника и Нина едут на пикник."]

{"sheet":"25","index":35,"n_rows":25,"n_cols":18,"rows_kept":25,"cut":false,"hidden":false,"merged":[[21,17,25,19]]}
[]
[null,"[П]"]
[]
[]
[]
[]
[]
[]
[]
[]
[]
[]
[]
[]
[]
[]
[]
[]
[]
[null,null,null,null,null,null,null,null,null,null,null,null,null,null,null,null,null,"Примечание:"]
[]
[]
[]
[]
[null,null,null,null,null,null,null,null,null,null,null,null,null,"У Поли и Павлика поезд."]

{"sheet":"26","index":36,"n_rows":22,"n_cols":18,"rows_kept":22,"cut":false,"hidden":false,"merged":[[21,17,25,19]]}
[]
[null,"[П']"]
[]
[]
[]
[]
[]
[]
[]
[]
[]
[]
[]
[]
[]
[]
[]
[]
[]
[null,null,null,null,null,null,null,null,null,null,null,null,null,null,null,null,null,"Примечание:"]
[]
[null,null,null,null,null,null,null,null,null,null,null,null,"Петя пел."]

{"sheet":"27","index":37,"n_rows":22,"n_cols":18,"rows_kept":22,"cut":false,"hidden":false,"merged":[[21,17,25,19]]}
[]
[null,"[Б]"]
[]
[]
[]
[]
[]
[]
[]
[]
[]
[]
[]
[]
[]
[]
[]
[]
[]
[null,null,null,null,null,null,null,null,null,null,null,null,null,null,null,null,null,"Примечание:"]
[]
[null,null,null,null,null,null,null,null,null,null,"У Бори и Бэллы баранки."]

{"sheet":"28","index":38,"n_rows":24,"n_cols":18,"rows_kept":24,"cut":false,"hidden":false,"merged":[[21,17,25,19]]}
[]
[null,"[Б']"]
[]
[]
[]
[]
[]
[]
[]
[]
[]
[]
[]
[]
[]
[]
[]
[]
[]
[null,null,null,null,null,null,null,null,null,null,null,null,null,null,null,null,null,"Примечание:"]
[]
[]
[]
[null,null,null,null,null,null,null,null,null,null,null,"У белки бельчонок."]

{"sheet":"29","index":39,"n_rows":24,"n_cols":18,"rows_kept":24,"cut":false,"hidden":false,"merged":[[21,17,25,19]]}
[]
[null,"[Т]"]
[]
[]
[]
[]
[]
[]
[]
[]
[]
[]
[]
[]
[]
[]
[]
[]
[]
[null,null,null,null,null,null,null,null,null,null,null,null,null,null,null,null,null,"Примечание:"]
[]
[]
[]
[null,null,null,null,null,null,null,null,null,null,null,"У Толи букет."]

{"sheet":"30","index":40,"n_rows":23,"n_cols":18,"rows_kept":23,"cut":false,"hidden":false,"merged":[[21,17,25,19]]}
[]
[null,"[Т']"]
[]
[]
[]
[]
[]
[]
[]
[]
[]
[]
[]
[]
[]
[]
[]
[]
[]
[null,null,null,null,null,null,null,null,null,null,null,null,null,null,null,null,null,"Примечание:"]
[]
[]
[null,null,null,null,null,null,null,null,null,null,null,"У Тины утюг."]

{"sheet":"31","index":41,"n_rows":24,"n_cols":18,"rows_kept":24,"cut":false,"hidden":false,"merged":[[21,17,25,19]]}
[]
[null,"[Д]"]
[]
[]
[]
[]
[]
[]
[]
[]
[]
[]
[]
[]
[]
[]
[]
[]
[]
[null,null,null,null,null,null,null,null,null,null,null,null,null,null,null,null,null,"Примечание:"]
[]
[]
[]
[null,null,null,null,null,null,null,null,null,null,null,"У Даши и Дани домик."]

{"sheet":"32","index":42,"n_rows":24,"n_cols":18,"rows_kept":24,"cut":false,"hidden":false,"merged":[[21,17,25,19]]}
[]
[null,"[Д']"]
[]
[]
[]
[]
[]
[]
[]
[]
[]
[]
[]
[]
[]
[]
[]
[]
[]
[null,null,null,null,null,null,null,null,null,null,null,null,null,null,null,null,null,"Примечание:"]
[]
[]
[]
[null,null,null,null,null,null,null,null,null,null,"Дина у дивана."]

{"sheet":"33","index":43,"n_rows":22,"n_cols":18,"rows_kept":22,"cut":false,"hidden":false,"merged":[[21,17,25,19]]}
[]
[null,"[Ф]"]
[]
[]
[]
[]
[]
[]
[]
[]
[]
[]
[]
[]
[]
[]
[]
[]
[]
[null,null,null,null,null,null,null,null,null,null,null,null,null,null,null,null,null,"Примечание:"]
[]
[null,null,null,null,null,null,null,null,null,null,null,"У Марфы муфта."]

{"sheet":"34","index":44,"n_rows":23,"n_cols":18,"rows_kept":23,"cut":false,"hidden":false,"merged":[[21,17,25,19]]}
[]
[null,"[Ф']"]
[]
[]
[]
[]
[]
[]
[]
[]
[]
[]
[]
[]
[]
[]
[]
[]
[]
[null,null,null,null,null,null,null,null,null,null,null,null,null,null,null,null,null,"Примечание:"]
[]
[]
[null,null,null,null,null,null,null,null,null,null,null,"Федя пьет кефир."]

{"sheet":"35","index":45,"n_rows":23,"n_cols":18,"rows_kept":23,"cut":false,"hidden":false,"merged":[[21,17,25,19]]}
[]
[null,"[В]"]
[]
[]
[]
[]
[]
[]
[]
[]
[]
[]
[]
[]
[]
[]
[]
[]
[]
[null,null,null,null,null,null,null,null,null,null,null,null,null,null,null,null,null,"Примечание:"]
[]
[]
[null,null,null,null,null,null,null,null,null,null,"Вовочку купают в ванне."]

{"sheet":"36","index":46,"n_rows":23,"n_cols":18,"rows_kept":23,"cut":false,"hidden":false,"merged":[[21,17,25,19]]}
[]
[null,"[В']"]
[]
[]
[]
[]
[]
[]
[]
[]
[]
[]
[]
[]
[]
[]
[]
[]
[]
[null,null,null,null,null,null,null,null,null,null,null,null,null,null,null,null,null,"Примечание:"]
[]
[]
[null,null,null,null,null,null,null,null,null,null,"У Вики и Вити вишни."]

{"sheet":"37","index":47,"n_rows":24,"n_cols":18,"rows_kept":24,"cut":false,"hidden":false,"merged":[[19,17,19,19],[21,17,21,19],[23,17,23,19]]}
[]
[null,"[А], [У], [О]"]
[]
[]
[]
[]
[]
[]
[]
[]
[]
[]
[]
[]
[]
[]
[]
[null,null,null,null,null,null,null,null,null,null,null,null,null,null,null,null,null,"Примечание:"]
[]
[null,null,null,null,null,null,null,null,null,null,null,null,null,null,null,null,"А="]
[]
[null,null,null,null,null,null,null,null,null,null,null,null,null,null,null,null,"У="]
[]
[null,null,null,null,null,null,null,null,null,null,null,null,null,null,null,null,"О="]

{"sheet":"38","index":48,"n_rows":24,"n_cols":18,"rows_kept":24,"cut":false,"hidden":false,"merged":[[19,17,19,19],[21,17,21,19],[23,17,23,19]]}
[]
[null,"[Ы], [И], [Э]"]
[]
[]
[]
[]
[]
[]
[]
[]
[]
[]
[]
[]
[]
[]
[]
[null,null,null,null,null,null,null,null,null,null,null,null,null,null,null,null,null,"Примечание:"]
[]
[null,null,null,null,null,null,null,null,null,null,null,null,null,null,null,null,"Ы="]
[]
[null,null,null,null,null,null,null,null,null,null,null,null,null,null,null,null,"И="]
[]
[null,null,null,null,null,null,null,null,null,null,null,null,null,null,null,null,"Э="]

{"sheet":"Y","index":49,"n_rows":2,"n_cols":2,"rows_kept":2,"cut":false,"hidden":false,"merged":[]}
[]
[null,"Внимание!"]

{"sheet":"39","index":50,"n_rows":2,"n_cols":2,"rows_kept":2,"cut":false,"hidden":false,"merged":[]}
[]
[null,"Фонематическое восприятие"]

{"sheet":"40","index":51,"n_rows":2,"n_cols":2,"rows_kept":2,"cut":false,"hidden":false,"merged":[]}
[]
[null,"Фонематическое восприятие"]

{"sheet":"41","index":52,"n_rows":2,"n_cols":2,"rows_kept":2,"cut":false,"hidden":false,"merged":[]}
[]
[null,"Фонематическое восприятие"]

{"sheet":"42","index":53,"n_rows":2,"n_cols":2,"rows_kept":2,"cut":false,"hidden":false,"merged":[]}
[]
[null,"Фонематическое восприятие"]

{"sheet":"43","index":54,"n_rows":2,"n_cols":2,"rows_kept":2,"cut":false,"hidden":false,"merged":[]}
[]
[null,"Фонематическое восприятие"]

{"sheet":"44","index":55,"n_rows":2,"n_cols":2,"rows_kept":2,"cut":false,"hidden":false,"merged":[]}
[]
[null,"Фонематическое восприятие"]

{"sheet":"45","index":56,"n_rows":2,"n_cols":2,"rows_kept":2,"cut":false,"hidden":false,"merged":[]}
[]
[null,"Фонематическое восприятие"]

{"sheet":"46","index":57,"n_rows":2,"n_cols":2,"rows_kept":2,"cut":false,"hidden":false,"merged":[]}
[]
[null,"Фонематическое восприятие"]

{"sheet":"47","index":58,"n_rows":2,"n_cols":2,"rows_kept":2,"cut":false,"hidden":false,"merged":[]}
[]
[null,"Фонематическое восприятие"]

{"sheet":"48","index":59,"n_rows":2,"n_cols":2,"rows_kept":2,"cut":false,"hidden":false,"merged":[]}
[]
[null,"Фонематическое восприятие"]

{"sheet":"49","index":60,"n_rows":15,"n_cols":10,"rows_kept":15,"cut":false,"hidden":false,"merged":[[16,9,21,17]]}
[]
[null,"Артикуляционная моторика"]
[]
[]
[]
[]
[]
[]
[]
[]
[]
[]
[]
[null,null,null,null,null,null,null,null,null,"Особенности артикуляционной моторики:"]
[null,null,null,null,null,null,null,null,null,"(губы, зубы, прикус...)"]

{"sheet":"50","index":61,"n_rows":16,"n_cols":10,"rows_kept":16,"cut":false,"hidden":false,"merged":[[17,9,22,17]]}
[]
[null,"Артикуляционная моторика"]
[]
[]
[]
[]
[]
[]
[]
[]
[]
[]
[]
[]
[null,null,null,null,null,null,null,null,null,"Особенности артикуляционной моторики:"]
[null,null,null,null,null,null,null,null,null,"(язык, подъязычная связка, небо…)"]

{"sheet":"51","index":62,"n_rows":21,"n_cols":10,"rows_kept":21,"cut":false,"hidden":false,"merged":[[22,9,27,17]]}
[]
[null,"Артикуляционная моторика"]
[]
[]
[]
[]
[]
[]
[]
[]
[]
[]
[]
[]
[]
[]
[]
[]
[]
[null,null,null,null,null,null,null,null,null,"Особенности артикуляционной моторики:"]
[null,null,null,null,null,null,null,null,null,"(тремор, девиация, саливация…)"]

{"sheet":"52","index":63,"n_rows":18,"n_cols":10,"rows_kept":18,"cut":false,"hidden":false,"merged":[[19,9,24,17]]}
[]
[null,"Артикуляционная моторика"]
[]
[]
[]
[]
[]
[]
[]
[]
[]
[]
[]
[]
[]
[]
[null,null,null,null,null,null,null,null,null,"Особенности артикуляционной моторики:"]
[null,null,null,null,null,null,null,null,null,"(синкинезии, гипо- или гипертонус...)"]

{"sheet":"53","index":64,"n_rows":20,"n_cols":10,"rows_kept":20,"cut":false,"hidden":false,"merged":[[21,9,26,17]]}
[]
[null,"Артикуляционная моторика"]
[]
[]
[]
[]
[]
[]
[]
[]
[]
[]
[]
[]
[]
[]
[]
[]
[null,null,null,null,null,null,null,null,null,"Особенности артикуляционной моторики:"]
[null,null,null,null,null,null,null,null,null,"(переключаемость движений, лицо, мимика…)"]

{"sheet":"54","index":65,"n_rows":2,"n_cols":2,"rows_kept":2,"cut":false,"hidden":false,"merged":[]}
[]
[null,"Синтаксический контроль"]

{"sheet":"55","index":66,"n_rows":2,"n_cols":2,"rows_kept":2,"cut":false,"hidden":false,"merged":[]}
[]
[null,"Падежные окончания"]

{"sheet":"56","index":67,"n_rows":2,"n_cols":2,"rows_kept":2,"cut":false,"hidden":false,"merged":[]}
[]
[null,"Падежные окончания"]

{"sheet":"57","index":68,"n_rows":2,"n_cols":2,"rows_kept":2,"cut":false,"hidden":false,"merged":[]}
[]
[null,"Предложные конструкции"]

{"sheet":"58","index":69,"n_rows":2,"n_cols":2,"rows_kept":2,"cut":false,"hidden":false,"merged":[]}
[]
[null,"Предложные конструкции"]

{"sheet":"59","index":70,"n_rows":2,"n_cols":2,"rows_kept":2,"cut":false,"hidden":false,"merged":[]}
[]
[null,"Множественное число"]

{"sheet":"60","index":71,"n_rows":2,"n_cols":2,"rows_kept":2,"cut":false,"hidden":false,"merged":[]}
[]
[null,"Множественное число"]

{"sheet":"61","index":72,"n_rows":2,"n_cols":2,"rows_kept":2,"cut":false,"hidden":false,"merged":[]}
[]
[null,"Множественное число"]

{"sheet":"62","index":73,"n_rows":2,"n_cols":2,"rows_kept":2,"cut":false,"hidden":false,"merged":[]}
[]
[null,"Множественное число"]

{"sheet":"63","index":74,"n_rows":2,"n_cols":2,"rows_kept":2,"cut":false,"hidden":false,"merged":[]}
[]
[null,"Множественное число"]

{"sheet":"64","index":75,"n_rows":2,"n_cols":2,"rows_kept":2,"cut":false,"hidden":false,"merged":[]}
[]
[null,"Согласование"]

{"sheet":"65","index":76,"n_rows":2,"n_cols":2,"rows_kept":2,"cut":false,"hidden":false,"merged":[]}
[]
[null,"Глагольный словарь"]

{"sheet":"66","index":77,"n_rows":2,"n_cols":2,"rows_kept":2,"cut":false,"hidden":false,"merged":[]}
[]
[null,"Глагольный словарь"]

{"sheet":"67","index":78,"n_rows":2,"n_cols":2,"rows_kept":2,"cut":false,"hidden":false,"merged":[]}
[]
[null,"Глагольный словарь"]

{"sheet":"68","index":79,"n_rows":2,"n_cols":2,"rows_kept":2,"cut":false,"hidden":false,"merged":[]}
[]
[null,"Существительные"]

{"sheet":"69","index":80,"n_rows":2,"n_cols":2,"rows_kept":2,"cut":false,"hidden":false,"merged":[]}
[]
[null,"Существительные"]

{"sheet":"70","index":81,"n_rows":2,"n_cols":2,"rows_kept":2,"cut":false,"hidden":false,"merged":[]}
[]
[null,"Существительные"]

{"sheet":"71","index":82,"n_rows":2,"n_cols":2,"rows_kept":2,"cut":false,"hidden":false,"merged":[]}
[]
[null,"Прилагательные"]

{"sheet":"72","index":83,"n_rows":2,"n_cols":2,"rows_kept":2,"cut":false,"hidden":false,"merged":[]}
[]
[null,"Прилагательные"]

{"sheet":"73","index":84,"n_rows":2,"n_cols":2,"rows_kept":2,"cut":false,"hidden":false,"merged":[]}
[]
[null,"Прилагательные"]

{"sheet":"74","index":85,"n_rows":2,"n_cols":2,"rows_kept":2,"cut":false,"hidden":false,"merged":[]}
[]
[null,"Наречия"]

{"sheet":"75","index":86,"n_rows":2,"n_cols":2,"rows_kept":2,"cut":false,"hidden":false,"merged":[]}
[]
[null,"Наречия"]

{"sheet":"76","index":87,"n_rows":2,"n_cols":2,"rows_kept":2,"cut":false,"hidden":false,"merged":[]}
[]
[null,"Наречия"]

{"sheet":"77","index":88,"n_rows":2,"n_cols":2,"rows_kept":2,"cut":false,"hidden":false,"merged":[]}
[]
[null,"Местоимения"]

{"sheet":"78","index":89,"n_rows":2,"n_cols":2,"rows_kept":2,"cut":false,"hidden":false,"merged":[]}
[]
[null,"Местоимения"]

{"sheet":"79","index":90,"n_rows":2,"n_cols":2,"rows_kept":2,"cut":false,"hidden":false,"merged":[]}
[]
[null,"Числительные"]

{"sheet":"80","index":91,"n_rows":2,"n_cols":2,"rows_kept":2,"cut":false,"hidden":false,"merged":[]}
[]
[null,"Понятийный словарь"]

{"sheet":"81","index":92,"n_rows":2,"n_cols":2,"rows_kept":2,"cut":false,"hidden":false,"merged":[]}
[]
[null,"Понятийный словарь"]

{"sheet":"82","index":93,"n_rows":2,"n_cols":2,"rows_kept":2,"cut":false,"hidden":false,"merged":[]}
[]
[null,"Словообразование"]

{"sheet":"83","index":94,"n_rows":2,"n_cols":2,"rows_kept":2,"cut":false,"hidden":false,"merged":[]}
[]
[null,"Словообразование"]

{"sheet":"84","index":95,"n_rows":2,"n_cols":2,"rows_kept":2,"cut":false,"hidden":false,"merged":[]}
[]
[null,"Словообразование"]

{"sheet":"85","index":96,"n_rows":2,"n_cols":2,"rows_kept":2,"cut":false,"hidden":false,"merged":[]}
[]
[null,"Словообразование"]

{"sheet":"86","index":97,"n_rows":2,"n_cols":2,"rows_kept":2,"cut":false,"hidden":false,"merged":[]}
[]
[null,"Словообразование"]

{"sheet":"87","index":98,"n_rows":2,"n_cols":2,"rows_kept":2,"cut":false,"hidden":false,"merged":[]}
[]
[null,"Словообразование"]

{"sheet":"88","index":99,"n_rows":2,"n_cols":2,"rows_kept":2,"cut":false,"hidden":false,"merged":[]}
[]
[null,"Словообразование"]

{"sheet":"89","index":100,"n_rows":2,"n_cols":2,"rows_kept":2,"cut":false,"hidden":false,"merged":[]}
[]
[null,"Словообразование"]

{"sheet":"90","index":101,"n_rows":2,"n_cols":2,"rows_kept":2,"cut":false,"hidden":false,"merged":[]}
[]
[null,"Словообразование"]

{"sheet":"91","index":102,"n_rows":2,"n_cols":2,"rows_kept":2,"cut":false,"hidden":false,"merged":[]}
[]
[null,"Словообразование"]

{"sheet":"92","index":103,"n_rows":2,"n_cols":2,"rows_kept":2,"cut":false,"hidden":false,"merged":[]}
[]
[null,"Словообразование"]

{"sheet":"93","index":104,"n_rows":2,"n_cols":2,"rows_kept":2,"cut":false,"hidden":false,"merged":[]}
[]
[null,"Словообразование"]

{"sheet":"94","index":105,"n_rows":2,"n_cols":2,"rows_kept":2,"cut":false,"hidden":false,"merged":[]}
[]
[null,"Словообразование"]

{"sheet":"95","index":106,"n_rows":2,"n_cols":2,"rows_kept":2,"cut":false,"hidden":false,"merged":[]}
[]
[null,"Словообразование"]

{"sheet":"96","index":107,"n_rows":2,"n_cols":2,"rows_kept":2,"cut":false,"hidden":false,"merged":[]}
[]
[null,"Словообразование"]

{"sheet":"Z","index":108,"n_rows":2,"n_cols":2,"rows_kept":2,"cut":false,"hidden":false,"merged":[]}
[]
[null,"Диагностика завершена!"]

{"sheet":"К","index":109,"n_rows":0,"n_cols":0,"rows_kept":0,"cut":false,"hidden":false,"merged":[]}

{"sheet":"Р","index":110,"n_rows":0,"n_cols":0,"rows_kept":0,"cut":false,"hidden":false,"merged":[]}

{"sheet":"Т","index":111,"n_rows":0,"n_cols":0,"rows_kept":0,"cut":false,"hidden":false,"merged":[]}